bitfinex/quotes_SOLUSD_20250527
["timestamp","ask_amount","ask_price","bid_price","bid_amount"]
[1748344960077,12.38871748,176.13,176.1,9.0]
[1748344960300,1.5657,176.15,176.1,9.0]
[1748344960301,12.38871748,176.12,176.1,9.0]
[1748344961090,0.56782692,176.11,176.1,9.0]
[1748344962222,14.37611171,176.11,176.06,26.0]
[1748344962371,14.37611171,176.11,176.05,9.14216157]
[1748344962372,12.38871748,176.09,176.05,9.0]
[1748344962591,12.38871748,176.08,176.05,9.0]
[1748344963099,0.56795592,176.07,176.05,9.0]
[1748344963313,12.9566734,176.07,176.05,9.0]
[1748344963617,12.38871748,176.06,176.02,34.72]
[1748344963826,1.98784573,176.07,176.02,47.10871748]
[1748344963827,14.37656321,176.07,176.02,47.10871748]
[1748344967198,12.38871748,176.06,176.02,34.74]
[1748344967405,1.98784573,176.07,176.03,12.38871748]
[1748344968232,1.98784573,176.07,176.04,12.38871748]
[1748344968537,1.98784573,176.07,176.06,12.38871748]
[1748344970123,1.41966341,176.1,176.06,12.38871748]
[1748344970334,1.41966341,176.1,176.08,12.38871748]
[1748344971125,1.41966341,176.1,176.07,47.12871748]
[1748344973107,1.41966341,176.1,176.08,12.38871748]
[1748344977442,1.41966341,176.1,176.09,12.38871748]
[1748344978207,1.41966341,176.1,176.08,12.38871748]
[1748344978719,1.41966341,176.1,176.09,12.38871748]
[1748344979834,1.41966341,176.1,176.07,47.12871748]
[1748344980604,1.41966341,176.1,176.08,12.38871748]
[1748344982616,1.41966341,176.1,176.09,12.38871748]
[1748344983308,1.41966341,176.1,176.06,43.74]
[1748344983551,1.41966341,176.1,176.09,12.38871748]
[1748344987628,1.41966341,176.1,176.06,43.74]
[1748344987818,1.41966341,176.1,176.08,12.38871748]
[1748344989337,1.41966341,176.1,176.06,21.38871748]
[1748344989537,12.38871748,176.09,176.06,9.0]
[1748344989734,1.41966341,176.1,176.06,9.0]
[1748344989735,13.80838089,176.1,176.06,9.0]
[1748344990034,1.41966341,176.1,176.06,21.38871748]
[1748344992040,1.98752258,176.1,176.06,21.38871748]
[1748344993436,14.37624006,176.1,176.06,9.0]
[1748344993807,1.98752258,176.1,176.06,21.38871748]
[1748344994009,1.98752258,176.1,176.07,12.38871748]
[1748344995025,1.98752258,176.1,176.06,21.38871748]
[1748344995422,1.98752258,176.1,176.06,9.0]
[1748344995624,1.98752258,176.1,176.06,21.38871748]
[1748344996140,1.41966341,176.1,176.07,12.38871748]
[1748345000143,1.41966341,176.1,176.08,12.38871748]
[1748345000326,1.41966341,176.1,176.06,9.0]
[1748345000524,1.41966341,176.1,176.08,12.38871748]
[1748345001145,0.56782692,176.11,176.1,0.14216157]
[1748345001445,4.82433735,176.19,176.1,85.65959653]
[1748345001620,4.82433735,176.19,176.15,12.38871748]
[1748345001817,4.82433735,176.19,176.16,12.38871748]
[1748345003449,4.82433735,176.19,176.12,9.0]
[1748345003450,4.82433735,176.19,176.15,12.38871748]
[1748345004147,12.38871748,176.18,176.13,12.38871748]
[1748345004359,12.38871748,176.15,176.1,12.38871748]
[1748345004519,12.38871748,176.14,176.09,56.10871748]
[1748345005452,12.38871748,176.14,176.1,12.38871748]
[1748345005625,1.98716856,176.13,176.1,12.38871748]
[1748345006627,1.41940612,176.13,176.1,12.38871748]
[1748345010357,1.98716856,176.13,176.09,56.10871748]
[1748345010663,1.98716856,176.13,176.1,12.38871748]
[1748345011659,1.98716856,176.13,176.12,12.38871748]
[1748345012768,2.83850524,176.15,176.12,12.38871748]
[1748345014859,1.98683014,176.16,176.13,12.38871748]
[1748345015039,1.98683014,176.16,176.14,12.38871748]
[1748345016864,1.41916439,176.16,176.14,12.38871748]
[1748345022772,1.41916439,176.16,176.13,34.72]
[1748345023139,1.41916439,176.16,176.14,12.38871748]
[1748345023344,1.41916439,176.16,176.15,12.38871748]
[1748345024169,0.56760131,176.18,176.15,12.38871748]
[1748345024373,0.56760131,176.18,176.17,12.38871748]
[1748345024695,2.8378455,176.19,176.17,47.10871748]
[1748345024864,0.56747247,176.22,176.18,12.38871748]
[1748345025176,1.98615366,176.22,176.21,12.38871748]
[1748345026775,1.41868119,176.22,176.21,12.38871748]
[1748345028178,1.41868119,176.22,176.21,47.08871748]
[1748345028788,2.83658831,176.27,176.21,47.08871748]
[1748345029072,2.83658831,176.27,176.24,12.38871748]
[1748345035766,2.83658831,176.27,176.25,12.38871748]
[1748345040708,1.98547764,176.28,176.26,12.38871748]
[1748345040864,1.98547764,176.28,176.23,26.0]
[1748345040865,1.98547764,176.28,176.27,12.38871748]
[1748345041460,2.83611967,176.3,176.27,12.38871748]
[1748345041665,2.83611967,176.3,176.25,34.68]
[1748345041874,2.83611967,176.3,176.21,10.70866157]
[1748345042091,12.38871748,176.28,176.22,34.68]
[1748345042275,12.38871748,176.28,176.23,12.38871748]
[1748345042682,13.92441748,176.28,176.23,12.38871748]
[1748345043292,13.92441748,176.28,176.21,35.12216157]
[1748345043293,12.38871748,176.26,176.19,8.98]
[1748345043501,12.38871748,176.26,176.2,47.06871748]
[1748345043502,14.37453307,176.25,176.2,47.06871748]
[1748345043665,14.37453307,176.25,176.2,12.38871748]
[1748345044170,14.37453307,176.25,176.19,56.04871748]
[1748345044576,17.2114125,176.25,176.19,56.04871748]
[1748345044894,17.2114125,176.25,176.2,12.38871748]
[1748345046795,4.82269502,176.25,176.21,12.38871748]
[1748345048404,16.64403662,176.25,176.2,12.38871748]
[1748345048840,12.38871748,176.23,176.19,8.98]
[1748345049002,12.38871748,176.22,176.19,8.98]
[1748345049199,14.05221748,176.22,176.19,8.98]
[1748345049504,14.05221748,176.22,176.17,12.38871748]
[1748345050502,1.98626638,176.21,176.17,12.38871748]
[1748345053812,4.82378978,176.21,176.16,34.68]
[1748345054005,4.82378978,176.21,176.18,12.38871748]
[1748345058093,12.38871748,176.19,176.09,5.58308206]
[1748345058300,12.38871748,176.16,176.11,12.38871748]
[1748345058605,12.38871748,176.17,176.09,34.68]
[1748345058844,12.38871748,176.16,176.11,12.38871748]
[1748345059191,12.38871748,176.15,176.07,15.5164]
[1748345059392,12.38871748,176.13,176.08,34.68]
[1748345059598,12.38871748,176.13,176.08,12.38871748]
[1748345059801,12.38871748,176.14,176.09,12.38871748]
[1748345060010,1.5812,176.16,176.12,12.38871748]
[1748345060011,0.56769798,176.15,176.12,12.38871748]
[1748345060210,0.56769798,176.15,176.14,12.38871748]
[1748345060402,1.98694294,176.15,176.14,12.38871748]
[1748345062419,1.98649185,176.19,176.14,12.38871748]
[1748345062725,1.98649185,176.19,176.15,12.38871748]
[1748345062726,4.82433735,176.19,176.15,12.38871748]
[1748345065114,4.82433735,176.19,176.16,12.38871748]
[1748345066902,1.98649185,176.19,176.18,12.38871748]
[1748345068522,2.8375234,176.21,176.18,12.38871748]
[1748345068729,2.8375234,176.21,176.2,12.38871748]
[1748345070301,1.98592826,176.24,176.2,12.38871748]
[1748345070629,1.98592826,176.24,176.21,12.38871748]
[1748345073500,1.98592826,176.24,176.22,12.38871748]
[1748345074336,4.82296865,176.24,176.2,12.38871748]
[1748345075316,4.82296865,176.24,176.21,12.38871748]
[1748345077140,4.82296865,176.24,176.22,12.38871748]
[1748345077514,4.82296865,176.24,176.17,60.7]
[1748345077717,4.82296865,176.24,176.22,12.38871748]
[1748345080043,4.82296865,176.24,176.21,12.38871748]
[1748345080341,4.82296865,176.24,176.17,60.84216157]
[1748345080517,17.21168613,176.24,176.19,12.38871748]
[1748345081026,12.38871748,176.22,176.18,12.38871748]
[1748345081236,0.56750468,176.21,176.18,12.38871748]
[1748345082424,1.98623366,176.22,176.18,12.38871748]
[1748345094636,1.98623366,176.22,176.19,12.38871748]
[1748345094844,1.98623366,176.22,176.21,12.38871748]
[1748345095148,0.56747247,176.22,176.21,12.38871748]
[1748345095343,1.98588468,176.25,176.21,12.38871748]
[1748345095536,1.98588468,176.25,176.23,12.38871748]
[1748345096953,1.98588468,176.25,176.24,12.38871748]
[1748345098623,1.98588468,176.25,176.23,12.38871748]
[1748345098820,12.38871748,176.24,176.18,26.0]
[1748345099038,12.38871748,176.24,176.19,12.38871748]
[1748345099247,17.21148159,176.25,176.2,12.38871748]
[1748345099939,4.82276411,176.25,176.21,12.38871748]
[1748345100467,4.82276411,176.25,176.22,12.38871748]
[1748345100662,1.98588468,176.25,176.23,12.38871748]
[1748345100954,1.98588468,176.25,176.24,12.38871748]
[1748345101136,1.98588468,176.25,176.23,12.38871748]
[1748345102124,2.8368331,176.26,176.24,12.38871748]
[1748345102866,1.98547764,176.28,176.25,12.38871748]
[1748345104053,1.98547764,176.28,176.27,12.38871748]
[1748345106034,2.8357922,176.32,176.27,12.38871748]
[1748345106344,2.8357922,176.32,176.3,12.38871748]
[1748345106543,1.98491464,176.33,176.31,12.38871748]
[1748345107938,4.82050699,176.33,176.3,12.38871748]
[1748345108236,4.82050699,176.33,176.27,43.62]
[1748345108434,4.82050699,176.33,176.31,12.38871748]
[1748345109347,4.82050699,176.33,176.32,12.38871748]
[1748345110246,1.41779617,176.33,176.32,12.38871748]
[1748345114168,2.83497823,176.37,176.32,12.38871748]
[1748345114366,2.83497823,176.37,176.35,12.38871748]
[1748345116349,2.83497823,176.37,176.36,12.38871748]
[1748345118339,2.83497823,176.37,176.35,12.38871748]
[1748345118841,2.83497823,176.37,176.3,26.0]
[1748345119046,2.83497823,176.37,176.33,12.38871748]
[1748345119553,0.56692556,176.39,176.36,38.38871748]
[1748345119791,0.56692556,176.39,176.38,12.38871748]
[1748345120065,1.41695945,176.44,176.39,0.14216157]
[1748345120066,0.56679702,176.43,176.39,0.14216157]
[1748345120248,0.56679702,176.43,176.42,12.38871748]
[1748345120450,1.98372435,176.44,176.42,12.38871748]
[1748345122838,1.98372435,176.44,176.37,34.78216157]
[1748345123155,1.5469,176.43,176.35,12.38871748]
[1748345123469,13.93561748,176.43,176.38,12.38871748]
[1748345123648,1.5469,176.43,176.39,12.38871748]
[1748345124367,1.98390204,176.42,176.39,12.38871748]
[1748345124550,1.98390204,176.42,176.4,12.38871748]
[1748345125743,1.98390204,176.42,176.35,60.64]
[1748345125744,4.81804782,176.42,176.38,12.38871748]
[1748345125941,1.98390204,176.42,176.41,12.38871748]
[1748345126150,1.98390204,176.42,176.41,12.53087905]
[1748345126367,1.41707289,176.42,176.41,12.53087905]
[1748345127871,1.41707289,176.42,176.41,58.70542791]
[1748345128070,0.5667649,176.44,176.42,18.79181043]
[1748345128268,4.16,176.45,176.44,44.79181043]
[1748345128471,4.16,176.45,176.44,91.80052791]
[1748345129281,6.14356474,176.45,176.44,12.38871748]
[1748345129481,6.14356474,176.45,176.43,26.0]
[1748345129482,6.14356474,176.45,176.43,47.00871748]
[1748345129864,6.14356474,176.45,176.44,12.38871748]
[1748345131583,6.14356474,176.45,176.44,12.53087905]
[1748345133259,6.14356474,176.45,176.43,34.62]
[1748345133483,6.14356474,176.45,176.44,12.38871748]
[1748345135303,6.14356474,176.45,176.42,12.38871748]
[1748345136480,6.14356474,176.45,176.44,12.38871748]
[1748345139588,6.14356474,176.45,176.43,12.38871748]
[1748345142587,6.14356474,176.45,176.44,12.38871748]
[1748345143099,6.14356474,176.45,176.44,12.53087905]
[1748345143519,4.72673278,176.45,176.44,31.18052791]
[1748345143675,4.16,176.45,176.44,31.18052791]
[1748345144303,4.72673278,176.45,176.44,31.18052791]
[1748345144786,4.16,176.45,176.44,31.18052791]
[1748345145512,4.16,176.45,176.44,57.18052791]
[1748345147992,4.16,176.53,176.44,57.18052791]
[1748345147993,4.16,176.61,176.56,18.64964886]
[1748345148199,4.16,176.61,176.59,0.14216157]
[1748345148200,4.72621935,176.61,176.59,0.14216157]
[1748345148379,4.72621935,176.61,176.6,12.38871748]
[1748345149298,4.16,176.61,176.6,38.53087905]
[1748345149504,4.72621935,176.61,176.6,38.38871748]
[1748345150273,4.72621935,176.61,176.6,38.53087905]
[1748345150474,4.72621935,176.61,176.6,38.38871748]
[1748345151175,4.72621935,176.61,176.6,38.53087905]
[1748345152492,6.14176773,176.61,176.6,12.38871748]
[1748345152692,6.14176773,176.61,176.6,12.53087905]
[1748345152693,4.72621935,176.61,176.6,12.53087905]
[1748345152917,4.16,176.61,176.6,43.56924539]
[1748345154214,4.72621935,176.61,176.6,18.79181043]
[1748345154385,4.72621935,176.61,176.6,43.56924539]
[1748345155594,4.16,176.61,176.6,43.56924539]
[1748345156509,0.56619465,176.62,176.61,31.18052791]
[1748345156708,0.56612318,176.64,176.63,26.0]
[1748345156914,0.56612318,176.64,176.63,82.00871748]
[1748345157586,0.56612318,176.64,176.63,47.32871748]
[1748345157797,0.56612318,176.64,176.63,82.00871748]
[1748345160209,0.56612318,176.64,176.63,100.80052791]
[1748345160794,0.56612318,176.64,176.63,88.41181043]
[1748345160998,0.56612318,176.64,176.63,82.15087905]
[1748345161692,0.56612318,176.64,176.63,34.94]
[1748345161889,1.98143115,176.64,176.58,8.94]
[1748345162098,1.98143115,176.64,176.6,12.38871748]
[1748345162704,14.37014863,176.64,176.58,8.94]
[1748345162894,14.37014863,176.64,176.59,12.38871748]
[1748345163285,13.90371748,176.63,176.59,12.38871748]
[1748345163486,13.90371748,176.63,176.58,8.94]
[1748345163487,1.98165552,176.62,176.58,8.94]
[1748345163716,12.38871748,176.61,176.56,12.38871748]
[1748345165811,14.37059742,176.6,176.55,12.38871748]
[1748345165992,1.98187994,176.6,176.58,12.38871748]
[1748345166793,1.98187994,176.6,176.55,0.14216157]
[1748345167095,1.98187994,176.6,176.58,12.38871748]
[1748345167719,1.41562853,176.6,176.58,12.38871748]
[1748345167912,1.41562853,176.6,176.57,12.38871748]
[1748345170616,1.41562853,176.6,176.58,12.38871748]
[1748345171506,1.41562853,176.6,176.57,12.38871748]
[1748345171831,1.41562853,176.6,176.58,12.38871748]
[1748345172004,1.41562853,176.6,176.59,12.38871748]
[1748345172505,1.41562853,176.6,176.58,12.38871748]
[1748345174723,1.41562853,176.6,176.59,12.38871748]
[1748345176214,1.41562853,176.6,176.55,0.14216157]
[1748345176409,1.41562853,176.6,176.59,12.38871748]
[1748345176807,1.41562853,176.6,176.53,43.6]
[1748345176808,1.41562853,176.6,176.54,18.79181043]
[1748345177018,1.41562853,176.6,176.59,12.38871748]
[1748345178727,1.41562853,176.6,176.58,12.38871748]
[1748345179532,1.41562853,176.6,176.54,18.79181043]
[1748345179533,1.41562853,176.6,176.59,12.38871748]
[1748345179704,1.41562853,176.6,176.54,18.79181043]
[1748345179705,1.41562853,176.6,176.58,12.38871748]
[1748345183626,1.41562853,176.6,176.54,34.74216157]
[1748345183824,1.41562853,176.6,176.56,12.38871748]
[1748345184024,12.38871748,176.59,176.54,12.38871748]
[1748345184534,1.41562853,176.6,176.55,12.38871748]
[1748345184535,13.80434601,176.6,176.55,12.38871748]
[1748345184711,13.80434601,176.6,176.56,12.38871748]
[1748345185449,14.37059742,176.6,176.56,12.38871748]
[1748345185651,1.98187994,176.6,176.56,12.38871748]
[1748345186423,1.98187994,176.6,176.53,8.94]
[1748345186424,13.80434601,176.6,176.53,8.94]
[1748345186624,13.80434601,176.6,176.55,12.38871748]
[1748345186825,1.41562853,176.6,176.56,12.38871748]
[1748345188556,1.98187994,176.6,176.56,12.38871748]
[1748345189342,1.98187994,176.6,176.53,8.94]
[1748345189555,1.98187994,176.6,176.59,12.38871748]
[1748345190943,1.41562853,176.6,176.59,12.38871748]
[1748345199242,1.41562853,176.6,176.53,122.62834886]
[1748345199243,1.41562853,176.6,176.53,88.8]
[1748345199441,18.64964886,176.57,176.46,4.03529864]
[1748345199744,1.556,176.58,176.49,12.38871748]
[1748345199745,12.38871748,176.54,176.49,12.38871748]
[1748345200122,38.38871748,176.54,176.49,12.38871748]
[1748345200535,1.98266583,176.53,176.49,12.38871748]
[1748345201052,1.98266583,176.53,176.48,12.38871748]
[1748345201247,14.37138331,176.53,176.48,12.38871748]
[1748345201762,14.37138331,176.53,176.43,34.8]
[1748345201763,4.81504559,176.53,176.52,12.38871748]
[1748345202062,1.98266583,176.53,176.52,12.38871748]
[1748345202265,1.98266583,176.53,176.51,12.38871748]
[1748345202424,1.41618988,176.53,176.5,12.38871748]
[1748345202627,1.41618988,176.53,176.47,8.96]
[1748345203041,1.41618988,176.53,176.49,12.38871748]
[1748345203640,13.80490736,176.53,176.47,8.96]
[1748345203842,13.80490736,176.53,176.47,21.34871748]
[1748345204463,14.37138331,176.53,176.48,12.38871748]
[1748345204662,14.37138331,176.53,176.47,21.34871748]
[1748345204663,12.38871748,176.52,176.47,21.34871748]
[1748345205257,17.20376307,176.53,176.48,12.38871748]
[1748345205471,12.38871748,176.52,176.47,21.34871748]
[1748345206644,13.80506782,176.51,176.47,8.96]
[1748345206856,12.38871748,176.5,176.47,8.96]
[1748345207066,12.38871748,176.49,176.47,8.96]
[1748345207260,12.38871748,176.48,176.47,8.96]
[1748345208073,14.05131748,176.5,176.47,8.96]
[1748345208573,12.38871748,176.49,176.47,8.96]
[1748345209152,0.56663644,176.48,176.47,8.96]
[1748345212252,1.98322755,176.48,176.44,12.38871748]
[1748345212582,14.37194503,176.48,176.43,12.38871748]
[1748345213456,1.98322755,176.48,176.44,12.38871748]
[1748345214011,1.98322755,176.48,176.45,12.38871748]
[1748345214353,1.98322755,176.48,176.41,0.14216157]
[1748345214354,14.37194503,176.48,176.41,0.14216157]
[1748345214556,14.37194503,176.48,176.43,12.38871748]
[1748345215676,12.38871748,176.47,176.42,21.44871748]
[1748345216185,4.81640978,176.48,176.43,12.38871748]
[1748345216355,17.20512726,176.48,176.43,12.38871748]
[1748345216771,4.81640978,176.48,176.43,12.38871748]
[1748345216969,17.20512726,176.48,176.43,12.38871748]
[1748345217580,17.20512726,176.48,176.46,12.38871748]
[1748345217581,1.41659111,176.48,176.46,12.38871748]
[1748345217987,1.41659111,176.48,176.42,9.20216157]
[1748345217988,1.41659111,176.48,176.45,12.38871748]
[1748345218156,1.41659111,176.48,176.42,9.20216157]
[1748345218157,1.41659111,176.48,176.43,0.14216157]
[1748345218356,1.41659111,176.48,176.47,12.38871748]
[1748345218683,1.41659111,176.48,176.46,12.38871748]
[1748345222995,0.56660434,176.49,176.47,12.38871748]
[1748345223290,0.56654013,176.51,176.49,0.14216157]
[1748345223490,0.56654013,176.51,176.5,12.38871748]
[1748345224668,1.41613634,176.54,176.5,12.38871748]
[1748345224866,1.41613634,176.54,176.52,12.38871748]
[1748345225677,1.41613634,176.54,176.51,12.38871748]
[1748345226693,13.80485382,176.54,176.48,9.06]
[1748345226897,13.80485382,176.54,176.49,12.38871748]
[1748345227274,1.41613634,176.54,176.5,12.38871748]
[1748345227974,1.41613634,176.54,176.48,9.06]
[1748345227975,12.38871748,176.53,176.48,21.44871748]
[1748345228898,1.98277815,176.52,176.48,21.44871748]
[1748345230268,1.98277815,176.52,176.48,9.06]
[1748345230474,1.98277815,176.52,176.48,21.44871748]
[1748345231180,2.83214214,176.55,176.49,12.38871748]
[1748345231381,15.22085962,176.55,176.5,12.38871748]
[1748345232200,2.83214214,176.55,176.51,12.38871748]
[1748345232577,2.83214214,176.55,176.53,12.38871748]
[1748345232874,17.20267228,176.57,176.53,12.38871748]
[1748345234105,17.20267228,176.57,176.52,12.38871748]
[1748345234478,17.20267228,176.57,176.53,12.38871748]
[1748345235803,4.8139548,176.57,176.53,12.38871748]
[1748345238002,16.63632466,176.57,176.51,0.14216157]
[1748345238205,16.63632466,176.57,176.52,12.38871748]
[1748345239033,17.20267228,176.57,176.52,12.38871748]
[1748345239427,12.38871748,176.55,176.5,9.06]
[1748345239731,12.38871748,176.55,176.5,21.44871748]
[1748345240446,17.20267228,176.57,176.52,12.38871748]
[1748345242167,12.38871748,176.56,176.51,12.38871748]
[1748345243226,1.98244123,176.55,176.51,12.38871748]
[1748345243956,12.38871748,176.54,176.5,9.06]
[1748345244180,4.81450013,176.55,176.5,9.06]
[1748345244181,12.38871748,176.53,176.5,9.06]
[1748345245119,0.56650804,176.52,176.5,9.06]
[1748345246349,1.98277815,176.52,176.48,12.38871748]
[1748345249761,1.41627011,176.52,176.49,12.38871748]
[1748345250155,1.41627011,176.52,176.5,12.38871748]
[1748345250861,1.41627011,176.52,176.51,12.38871748]
[1748345251614,1.41627011,176.52,176.46,18.79181043]
[1748345251732,1.41627011,176.52,176.5,12.38871748]
[1748345253864,1.41627011,176.52,176.46,18.79181043]
[1748345254181,1.41627011,176.52,176.5,12.38871748]
[1748345255247,0.56644386,176.54,176.52,18.79181043]
[1748345255449,0.56644386,176.54,176.53,12.38871748]
[1748345255845,0.56644386,176.54,176.49,26.0]
[1748345256184,12.38871748,176.57,176.49,26.0]
[1748345256185,0.5663797,176.56,176.49,26.0]
[1748345256344,0.5663797,176.56,176.51,12.38871748]
[1748345257282,1.41610966,176.54,176.51,12.38871748]
[1748345257451,15.22061598,176.56,176.51,12.38871748]
[1748345259297,12.38871748,176.55,176.5,12.38871748]
[1748345260289,4.81422745,176.56,176.48,9.0]
[1748345260290,12.38871748,176.53,176.48,9.0]
[1748345260490,12.38871748,176.51,176.48,9.0]
[1748345260796,12.38871748,176.5,176.48,9.0]
[1748345262185,12.38871748,176.51,176.48,9.0]
[1748345262344,0.56657223,176.5,176.48,9.0]
[1748345263700,0.56657223,176.5,176.48,21.38871748]
[1748345263993,0.56657223,176.5,176.49,12.38871748]
[1748345264359,1.98285628,176.52,176.49,12.38871748]
[1748345264558,1.98285628,176.52,176.5,12.38871748]
[1748345264796,1.98285628,176.52,176.49,12.38871748]
[1748345265967,1.98285628,176.52,176.51,12.38871748]
[1748345266185,1.98285628,176.52,176.51,12.53087905]
[1748345266186,0.56650804,176.52,176.51,12.53087905]
[1748345266366,1.41609149,176.55,176.51,12.53087905]
[1748345266564,1.41609149,176.55,176.54,12.38871748]
[1748345266997,1.41609149,176.55,176.53,12.38871748]
[1748345267164,1.41609149,176.55,176.51,12.38871748]
[1748345267996,1.41609149,176.55,176.52,12.38871748]
[1748345268498,1.98250327,176.55,176.52,12.38871748]
[1748345268657,1.98250327,176.55,176.51,12.38871748]
[1748345268658,4.81456217,176.55,176.51,12.38871748]
[1748345269089,4.81456217,176.55,176.49,0.14216157]
[1748345269285,12.38871748,176.54,176.49,12.38871748]
[1748345269488,17.20327965,176.55,176.5,12.38871748]
[1748345271691,12.38871748,176.54,176.49,12.38871748]
[1748345272086,17.20327965,176.55,176.5,12.38871748]
[1748345272292,4.81456217,176.55,176.52,12.38871748]
[1748345274388,4.24815039,176.55,176.52,12.38871748]
[1748345275480,4.24815039,176.55,176.51,12.38871748]
[1748345275990,4.81456217,176.55,176.51,12.38871748]
[1748345276377,17.20327965,176.55,176.51,12.38871748]
[1748345276896,43.20327965,176.55,176.5,12.38871748]
[1748345278096,30.81456217,176.55,176.52,12.38871748]
[1748345279402,30.81456217,176.55,176.51,12.38871748]
[1748345280274,12.38871748,176.54,176.48,43.68]
[1748345280576,12.38871748,176.54,176.48,21.38871748]
[1748345282300,4.81504559,176.53,176.48,21.38871748]
[1748345282473,17.20376307,176.53,176.48,21.38871748]
[1748345283608,17.20376307,176.53,176.48,9.0]
[1748345283976,17.20376307,176.53,176.48,21.38871748]
[1748345284494,38.38871748,176.52,176.48,9.0]
[1748345286598,1.98289047,176.51,176.48,9.0]
[1748345287376,14.37160795,176.51,176.48,9.0]
[1748345287589,12.38871748,176.5,176.48,9.0]
[1748345287999,12.38871748,176.5,176.45,12.38871748]
[1748345288418,4.81559116,176.51,176.47,12.38871748]
[1748345288574,4.81559116,176.51,176.48,12.38871748]
[1748345289299,4.81559116,176.51,176.47,12.38871748]
[1748345291118,4.81559116,176.51,176.44,0.14216157]
[1748345291280,4.81559116,176.51,176.47,12.38871748]
[1748345291893,12.38871748,176.5,176.43,9.0]
[1748345292092,7.64829185,176.51,176.43,9.0]
[1748345292093,12.38871748,176.48,176.43,21.38871748]
[1748345293875,1.98333993,176.47,176.43,21.38871748]
[1748345294272,14.37205741,176.47,176.43,9.0]
[1748345294881,12.38871748,176.46,176.43,9.0]
[1748345295383,0.56673278,176.45,176.43,9.0]
[1748345299799,0.56670066,176.46,176.43,9.0]
[1748345299982,0.56670066,176.46,176.44,12.38871748]
[1748345300311,0.56670066,176.46,176.45,12.38871748]
[1748345301809,1.41667138,176.47,176.45,12.38871748]
[1748345303396,1.41667138,176.47,176.46,12.38871748]
[1748345303803,1.98300282,176.5,176.46,12.38871748]
[1748345304511,1.98300282,176.5,176.48,12.38871748]
[1748345306118,1.41643059,176.5,176.48,12.38871748]
[1748345306688,13.80514807,176.5,176.45,12.38871748]
[1748345306902,13.80514807,176.5,176.44,34.64]
[1748345306903,12.38871748,176.49,176.44,47.02871748]
[1748345307419,13.80514807,176.5,176.45,12.38871748]
[1748345308528,17.20458148,176.5,176.45,12.38871748]
[1748345312119,17.20458148,176.5,176.44,34.64]
[1748345312423,17.20458148,176.5,176.45,12.38871748]
[1748345313929,2.83286118,176.5,176.45,12.38871748]
[1748345314221,15.22157866,176.5,176.45,12.38871748]
[1748345315026,2.83270069,176.51,176.47,12.38871748]
[1748345315337,1.98266583,176.53,176.5,12.38871748]
[1748345315554,1.98266583,176.53,176.51,12.38871748]
[1748345315725,1.98266583,176.53,176.49,12.38871748]
[1748345316736,1.41618988,176.53,176.5,12.38871748]
[1748345318454,1.41618988,176.53,176.51,12.38871748]
[1748345318663,1.41618988,176.53,176.52,12.38871748]
[1748345320341,0.56634762,176.57,176.52,12.38871748]
[1748345320547,4.8139548,176.57,176.53,12.38871748]
[1748345321337,17.20267228,176.57,176.52,12.38871748]
[1748345321537,1.98221668,176.57,176.55,12.38871748]
[1748345323030,1.98221668,176.57,176.54,12.38871748]
[1748345323431,1.98221668,176.57,176.55,12.38871748]
[1748345325456,1.41586906,176.57,176.55,12.38871748]
[1748345326346,1.41586906,176.57,176.54,12.38871748]
[1748345326687,5.57652418,176.63,176.56,12.38871748]
[1748345326865,0.56618729,176.62,176.6,12.53087905]
[1748345327064,0.56618729,176.62,176.61,56.11087905]
[1748345327266,0.56618729,176.62,176.61,55.96871748]
[1748345328951,0.56612318,176.64,176.61,55.96871748]
[1748345329252,0.56612318,176.64,176.63,12.38871748]
[1748345331249,0.56612318,176.64,176.61,43.58]
[1748345331455,0.56612318,176.64,176.61,8.96]
[1748345331666,0.56612318,176.64,176.58,26.0]
[1748345331868,4.81204709,176.64,176.58,34.62]
[1748345332172,4.81204709,176.64,176.61,12.38871748]
[1748345332761,4.81204709,176.64,176.6,12.38871748]
[1748345334450,1.98143115,176.64,176.63,12.38871748]
[1748345340949,1.98143115,176.64,176.62,34.62]
[1748345341156,1.98143115,176.64,176.63,12.38871748]
[1748345341554,1.98143115,176.64,176.6,26.0]
[1748345341776,1.98143115,176.64,176.63,12.38871748]
[1748345341977,1.98143115,176.64,176.56,8.94]
[1748345342180,4.81204709,176.64,176.61,12.38871748]
[1748345344979,4.81204709,176.64,176.62,12.38871748]
[1748345347159,4.81204709,176.64,176.61,12.38871748]
[1748345347369,4.81204709,176.64,176.6,12.38871748]
[1748345349864,4.81204709,176.64,176.61,12.38871748]
[1748345350064,4.81204709,176.64,176.63,12.38871748]
[1748345350065,1.98143115,176.64,176.63,12.38871748]
[1748345350371,4.81204709,176.64,176.6,12.38871748]
[1748345350576,4.81204709,176.64,176.59,60.6]
[1748345350767,4.81204709,176.64,176.6,12.38871748]
[1748345351577,4.81204709,176.64,176.59,12.38871748]